fUST/lending_fUST_20250223
["ID","MTS","AMOUNT","RATE_DAILY","PERIOD"]
[354112225,1740251444573,-1261.35,0.00014438,2]
[354112227,1740251444583,-879.83,0.00014438,2]
[354112229,1740251444592,-1000.0,0.00014462,2]
[354112231,1740251444601,-500.0,0.0001452,2]
[354112233,1740251444612,-500.0,0.0001452,2]
[354112236,1740251444626,-500.0,0.0001452,2]
[354112238,1740251444635,-858.89,0.0001452,2]
[354112240,1740251444644,-1566.2,0.0001452,2]
[354112241,1740251444653,-734.87,0.0001452,2]
[354112244,1740251444663,-500.0,0.0001452,2]
[354112246,1740251444673,-477.5,0.0001452,2]
[354112248,1740251444682,-500.0,0.0001452,2]
[354112249,1740251444691,-500.0,0.0001452,2]
[354112251,1740251444701,-500.0,0.0001452,2]
[354112253,1740251444710,-500.0,0.0001452,2]
[354112255,1740251444719,-748.64,0.0001452,2]
[354112257,1740251444729,-500.0,0.0001452,2]
[354112259,1740251444738,-500.0,0.0001452,2]
[354112261,1740251444749,-3189.54,0.0001452,2]
[354112263,1740251444759,-9232.72,0.0001452,2]
[354112265,1740251444768,-1167.52,0.0001452,2]
[354112268,1740251444778,-500.0,0.0001452,2]
[354112269,1740251444787,-500.0,0.0001452,2]
[354112271,1740251444796,-1261.35,0.0001452,2]
[354112274,1740251444806,-879.83,0.0001452,2]
[354112276,1740251444816,-164.52539263,0.00014584,2]
[354112278,1740251444828,-164.52539263,0.00014584,2]
[354112280,1740251444837,-164.52539263,0.00014584,2]
[354112282,1740251444846,-164.52539263,0.00014584,2]
[354112284,1740251444856,-164.52539263,0.00014584,2]
[354112286,1740251444866,-164.52539263,0.00014584,2]
[354112288,1740251444875,-164.52539263,0.00014584,2]
[354112290,1740251444886,-164.52539263,0.00014584,2]
[354112292,1740251444895,-164.52539263,0.00014584,2]
[354112294,1740251444903,-164.52539263,0.00014584,2]
[354112296,1740251444912,-164.52539263,0.00014584,2]
[354112298,1740251444921,-164.52539263,0.00014584,2]
[354112300,1740251444930,-164.52539263,0.00014584,2]
[354112302,1740251444939,-164.52539263,0.00014584,2]
[354112303,1740251444947,-164.52539263,0.00014584,2]
[354112306,1740251444957,-164.52539263,0.00014584,2]
[354112307,1740251444966,-164.52539263,0.00014584,2]
[354112309,1740251444975,-164.52539263,0.00014584,2]
[354112312,1740251444984,-164.52539263,0.00014584,2]
[354112314,1740251444998,-164.52,0.00014584,2]
[354112316,1740251445011,-500.0,0.00014601,2]
[354112319,1740251445024,-500.0,0.00014601,2]
[354112321,1740251445036,-500.0,0.00014602,2]
[354112324,1740251445049,-500.0,0.00014602,2]
[354112326,1740251445059,-500.0,0.00014602,2]
[354112328,1740251445069,-858.89,0.00014602,2]
[354112330,1740251445082,-1566.2,0.00014602,2]
[354112332,1740251445094,-734.87,0.00014602,2]
[354112335,1740251445106,-500.0,0.00014602,2]
[354112337,1740251445117,-500.0,0.00014602,2]
[354112339,1740251445130,-500.0,0.00014602,2]
[354112341,1740251445142,-500.0,0.00014602,2]
[354112344,1740251445153,-500.0,0.00014602,2]
[354112346,1740251445166,-748.64,0.00014602,2]
[354112348,1740251445178,-500.0,0.00014602,2]
[354112351,1740251445191,-500.0,0.00014602,2]
[354112353,1740251445202,-3189.54,0.00014602,2]
[354112355,1740251445213,-9232.72,0.00014602,2]
[354112357,1740251445224,-1167.52,0.00014602,2]
[354112359,1740251445236,-500.0,0.00014602,2]
[354112362,1740251445248,-500.0,0.00014602,2]
[354112364,1740251445260,-1261.35,0.00014602,2]
[354112366,1740251445272,-879.83,0.00014602,2]
[354112369,1740251445285,-500.0,0.0001464,2]
[354112371,1740251445295,-500.0,0.0001464,2]
[354112373,1740251445307,-12924.89674434,0.0001464,2]
[354112375,1740251445318,-573.34456044,0.00014667,2]
[354112377,1740251445329,-81372.23072327,0.00014683,5]
[354112380,1740251445341,-149247.83786506,0.00014684,5]
[354112382,1740251445352,-500.0,0.00014684,2]
[354112384,1740251445364,-500.0,0.00014684,2]
[354112386,1740251445375,-500.0,0.00014684,2]
[354112389,1740251445387,-858.89,0.00014684,2]
[354112391,1740251445399,-1566.2,0.00014684,2]
[354112393,1740251445410,-734.87,0.00014684,2]
[354112396,1740251445423,-500.0,0.00014684,2]
[354112398,1740251445435,-500.0,0.00014684,2]
[354112400,1740251445447,-500.0,0.00014684,2]
[354112402,1740251445459,-500.0,0.00014684,2]
[354112405,1740251445471,-500.0,0.00014684,2]
[354112407,1740251445482,-748.64,0.00014684,2]
[354112409,1740251445492,-500.0,0.00014684,2]
[354112411,1740251445502,-500.0,0.00014684,2]
[354112413,1740251445512,-3189.54,0.00014684,2]
[354112415,1740251445522,-9232.72,0.00014684,2]
[354112418,1740251445533,-1167.52,0.00014684,2]
[354112421,1740251445546,-500.0,0.00014684,2]
[354112424,1740251445559,-500.0,0.00014684,2]
[354112427,1740251445571,-1261.35,0.00014684,2]
[354112429,1740251445581,-879.83,0.00014684,2]
[354112431,1740251445592,-1266.50320417,0.000147,2]
[354112433,1740251445602,-500.0,0.00014765,2]
[354112436,1740251445619,-500.0,0.00014765,2]
[354112438,1740251445630,-500.0,0.00014767,2]
[354112440,1740251445642,-162.56262412,0.00014767,2]
[354112442,1740251445653,-500.0,0.00014767,2]
[354112445,1740251445664,-858.89,0.00014767,2]
[354112447,1740251445674,-1566.2,0.00014767,2]
[354112449,1740251445684,-151.0,0.00014767,2]
[354112451,1740251445694,-734.87,0.00014767,2]
[354112453,1740251445705,-151.0,0.00014767,2]
[354112455,1740251445715,-152.68,0.00014767,2]
[354112457,1740251445726,-500.0,0.00014767,2]
[354112459,1740251445737,-500.0,0.00014767,2]
[354112462,1740251445750,-243.629421,0.00014767,2]
[354112464,1740251445760,-500.0,0.00014767,2]
[354112466,1740251445771,-243.629421,0.00014767,2]
[354112468,1740251445781,-500.0,0.00014767,2]
[354112470,1740251445794,-748.64,0.00014767,2]
[354112472,1740251445805,-172.240725,0.00014767,2]
[354112474,1740251445816,-165.641956,0.00014767,2]
[354112476,1740251445827,-286.91951467,0.00014767,2]
[354112479,1740251445839,-172.240725,0.00014767,2]
[354112481,1740251445850,-151.0,0.00014767,2]
[354112483,1740251445861,-151.0,0.00014767,2]
[354112485,1740251445871,-500.0,0.00014767,2]
[354112487,1740251445884,-3189.54,0.00014767,2]
[354112489,1740251445894,-9232.72,0.00014767,2]
[354112492,1740251445906,-1167.52,0.00014767,2]
[354112494,1740251445917,-500.0,0.00014767,2]
[354112496,1740251445927,-500.0,0.00014767,2]
[354112498,1740251445937,-1261.35,0.00014767,2]
[354112500,1740251445948,-879.83,0.00014767,2]
[354112502,1740251445958,-500.0,0.00014773,2]
[354112504,1740251445968,-500.0,0.00014773,2]
[354112506,1740251445978,-500.0,0.00014773,2]
[354112509,1740251445989,-151.0,0.00014799,2]
[354112511,1740251446000,-151.0,0.00014799,2]
[354112513,1740251446010,-151.0,0.00014799,2]
[354112515,1740251446021,-151.0,0.000148,2]
[354112517,1740251446031,-151.0,0.000148,2]
[354112519,1740251446041,-151.0,0.000148,2]
[354112521,1740251446053,-211.296908,0.000148,2]
[354112523,1740251446063,-229.014911,0.000148,2]
[354112525,1740251446073,-229.014911,0.000148,2]
[354112527,1740251446083,-151.0,0.000148,2]
[354112528,1740251446094,-151.0,0.000148,2]
[354112529,1740251446105,-500.0,0.00014849,2]
[354112530,1740251446117,-286.77,0.00014849,2]
[354112531,1740251446128,-858.89,0.00014849,2]
[354112532,1740251446138,-1566.2,0.00014849,2]
[354112533,1740251446147,-151.0,0.00014849,2]
[354112534,1740251446157,-734.87,0.00014849,2]
[354112536,1740251446166,-151.0,0.00014849,2]
[354112542,1740251446281,-500.0,0.00014849,2]
[354112544,1740251446296,-500.0,0.00014849,2]
[354112545,1740251446305,-243.629421,0.00014849,2]
[354112546,1740251446315,-500.0,0.00014849,2]
[354112547,1740251446325,-243.629421,0.00014849,2]
[354112548,1740251446336,-428.03733345,0.00014849,2]
[354112549,1740251446345,-748.64,0.00014849,2]
[354112550,1740251446355,-500.0,0.00014849,2]
[354112551,1740251446364,-3189.54,0.00014849,2]
[354112552,1740251446374,-9232.72,0.00014849,2]
[354112553,1740251446385,-1167.52,0.00014849,2]
[354112554,1740251446394,-500.0,0.00014849,2]
[354112555,1740251446403,-500.0,0.00014849,2]
[354112556,1740251446411,-1261.35,0.00014849,2]
[354112557,1740251446420,-879.83,0.00014849,2]
[354112558,1740251446429,-572.813,0.00014899,2]
[354112559,1740251446438,-175.046,0.00014899,2]
[354112560,1740251446447,-9516.9090252,0.000149,2]
[354112561,1740251446456,-172.240725,0.000149,2]
[354112562,1740251446466,-172.240725,0.000149,2]
[354112563,1740251446475,-151.0,0.000149,2]
[354112564,1740251446484,-151.0,0.000149,2]
[354112565,1740251446493,-500.0,0.00014929,2]
[354112566,1740251446503,-500.0,0.00014929,2]
[354112567,1740251446512,-500.0,0.00014931,2]
[354112568,1740251446521,-151.0,0.00014931,2]
[354112569,1740251446531,-151.0,0.00014931,2]
[354112570,1740251446540,-858.89,0.00014931,2]
[354112571,1740251446550,-151.0,0.00014931,2]
[354112572,1740251446559,-1566.2,0.00014931,2]
[354112573,1740251446568,-734.87,0.00014931,2]
[354112574,1740251446577,-500.0,0.00014931,2]
[354112575,1740251446586,-500.0,0.00014931,2]
[354112576,1740251446595,-500.0,0.00014931,2]
[354112577,1740251446605,-748.64,0.00014931,2]
[354112578,1740251446618,-500.0,0.00014931,2]
[354112579,1740251446630,-3189.54,0.00014931,2]
[354112580,1740251446640,-9232.72,0.00014931,2]
[354112581,1740251446650,-1167.52,0.00014931,2]
[354112582,1740251446660,-500.0,0.00014931,2]
[354112583,1740251446670,-377.75,0.00014931,2]
[354112584,1740251446680,-1261.35,0.00014931,2]
[354112585,1740251446690,-879.83,0.00014931,2]
[354112586,1740251446700,-270.87,0.00015012,2]
[354112587,1740251446710,-500.0,0.00015012,2]
[354112588,1740251446719,-151.0,0.00015013,2]
[354112589,1740251446729,-151.0,0.00015013,2]
[354112590,1740251446738,-500.0,0.00015013,2]
[354112591,1740251446750,-858.89,0.00015013,2]
[354112592,1740251446759,-1566.2,0.00015013,2]
[354112593,1740251446768,-734.87,0.00015013,2]
[354112594,1740251446777,-297.19,0.00015013,2]
[354112595,1740251446786,-500.0,0.00015013,2]
[354112596,1740251446796,-298.32,0.00015013,2]
[354112597,1740251446806,-748.64,0.00015013,2]
[354112598,1740251446816,-500.0,0.00015013,2]
[354112599,1740251446827,-3189.54,0.00015013,2]
[354112600,1740251446836,-9232.72,0.00015013,2]
[354112601,1740251446846,-1167.52,0.00015013,2]
[354112602,1740251446856,-500.0,0.00015013,2]
[354112603,1740251446865,-1261.35,0.00015013,2]
[354112604,1740251446875,-879.83,0.00015013,2]
[354112605,1740251446884,-597.92,0.00015095,2]
[354112606,1740251446893,-858.89,0.00015095,2]
[354112607,1740251446902,-1566.2,0.00015095,2]
[354112608,1740251446911,-734.87,0.00015095,2]
[354112609,1740251446920,-597.13,0.00015095,2]
[354112610,1740251446929,-748.64,0.00015095,2]
[354112611,1740251446938,-500.0,0.00015095,2]
[354112612,1740251446948,-3189.54,0.00015095,2]
[354112613,1740251446957,-9232.72,0.00015095,2]
[354112614,1740251446967,-1167.52,0.00015095,2]
[354112615,1740251446977,-500.0,0.00015095,2]
[354112616,1740251446987,-1261.35,0.00015095,2]
[354112617,1740251446996,-879.83,0.00015095,2]
[354112618,1740251447006,-500.0,0.00015176,2]
[354112619,1740251447015,-151.0,0.00015178,2]
[354112620,1740251447025,-858.89,0.00015178,2]
[354112621,1740251447035,-1566.2,0.00015178,2]
[354112622,1740251447045,-734.87,0.00015178,2]
[354112623,1740251447054,-748.64,0.00015178,2]
[354112624,1740251447065,-448.63,0.00015178,2]
[354112625,1740251447076,-3189.54,0.00015178,2]
[354112626,1740251447086,-9232.72,0.00015178,2]
[354112627,1740251447097,-1167.52,0.00015178,2]
[354112628,1740251447108,-500.0,0.00015178,2]
[354112629,1740251447120,-1261.35,0.00015178,2]
[354112630,1740251447130,-879.83,0.00015178,2]
[354112631,1740251447140,-151.0,0.0001526,2]
[354112632,1740251447149,-229.014911,0.0001526,2]
[354112633,1740251447158,-229.014911,0.0001526,2]
[354112634,1740251447168,-151.0,0.0001526,2]
[354112635,1740251447179,-151.0,0.0001526,2]
[354112636,1740251447189,-858.89,0.0001526,2]
[354112637,1740251447198,-1566.2,0.0001526,2]
[354112638,1740251447208,-734.87,0.0001526,2]
[354112639,1740251447217,-748.64,0.0001526,2]
[354112640,1740251447226,-3189.54,0.0001526,2]
[354112641,1740251447235,-9232.72,0.0001526,2]
[354112642,1740251447245,-1167.52,0.0001526,2]
[354112643,1740251447254,-623.61,0.0001526,2]
[354112644,1740251447264,-1261.35,0.0001526,2]
[354112645,1740251447273,-879.83,0.0001526,2]
[354112646,1740251447282,-151.0,0.000153,2]
[354112647,1740251447292,-500.0,0.00015321,2]
[354112648,1740251447300,-1000.0,0.00015321,2]
[354112649,1740251447310,-263.78014313,0.0001534,2]
[354112650,1740251447319,-858.89,0.00015342,2]
[354112651,1740251447328,-1566.2,0.00015342,2]
[354112652,1740251447337,-151.0,0.00015342,2]
[354112653,1740251447346,-734.87,0.00015342,2]
[354112654,1740251447355,-151.0,0.00015342,2]
[354112655,1740251447365,-243.629421,0.00015342,2]
[354112656,1740251447375,-243.629421,0.00015342,2]
[354112657,1740251447385,-748.64,0.00015342,2]
[354112658,1740251447395,-3189.54,0.00015342,2]
[354112659,1740251447405,-9232.72,0.00015342,2]
[354112660,1740251447416,-1167.52,0.00015342,2]
[354112661,1740251447425,-1261.35,0.00015342,2]
[354112662,1740251447434,-879.83,0.00015342,2]
[354112663,1740251447444,-858.89,0.00015424,2]
[354112664,1740251447453,-1566.2,0.00015424,2]
[354112665,1740251447462,-734.87,0.00015424,2]
[354112666,1740251447471,-748.64,0.00015424,2]
[354112667,1740251447481,-172.240725,0.00015424,2]
[354112668,1740251447491,-172.240725,0.00015424,2]
[354112669,1740251447502,-151.0,0.00015424,2]
[354112670,1740251447512,-151.0,0.00015424,2]
[354112671,1740251447523,-3189.54,0.00015424,2]
[354112672,1740251447532,-9232.72,0.00015424,2]
[354112673,1740251447543,-1167.52,0.00015424,2]
[354112674,1740251447552,-1261.35,0.00015424,2]
[354112675,1740251447562,-879.83,0.00015424,2]
[354112676,1740251447571,-1500.0,0.00015464,2]
[354112677,1740251447581,-500.0,0.000155,7]
[354112678,1740251447590,-500.0,0.000155,7]
[354112679,1740251447600,-500.0,0.000155,7]
[354112680,1740251447609,-500.0,0.000155,7]
[354112681,1740251447618,-500.0,0.000155,7]
[354112682,1740251447627,-500.0,0.000155,7]
[354112683,1740251447636,-500.0,0.000155,7]
[354112684,1740251447646,-500.0,0.000155,7]
[354112685,1740251447656,-500.0,0.000155,7]
[354112686,1740251447665,-500.0,0.000155,7]
[354112687,1740251447674,-500.0,0.000155,7]
[354112688,1740251447684,-500.0,0.000155,7]
[354112689,1740251447693,-500.0,0.000155,7]
[354112690,1740251447702,-500.0,0.000155,7]
[354112691,1740251447711,-500.0,0.000155,7]
[354112692,1740251447720,-518.04,0.000155,7]
[354112693,1740251447729,-151.0,0.000155,2]
[354112694,1740251447738,-206.383602,0.000155,2]
[354112695,1740251447751,-151.0,0.000155,2]
[354112696,1740251447761,-151.0,0.000155,2]
[354112697,1740251447770,-858.89,0.00015506,2]
[354112698,1740251447779,-1566.2,0.00015506,2]
[354112699,1740251447789,-734.87,0.00015506,2]
[354112700,1740251447798,-748.64,0.00015506,2]
[354112701,1740251447808,-3189.54,0.00015506,2]
[354112702,1740251447819,-9232.72,0.00015506,2]
[354112703,1740251447831,-1167.52,0.00015506,2]
[354112704,1740251447842,-1261.35,0.00015506,2]
[354112705,1740251447851,-879.83,0.00015506,2]
[354112706,1740251447861,-355.293833,0.00015534,2]
[354112707,1740251447870,-151.0,0.00015589,2]
[354112708,1740251447880,-151.0,0.00015589,2]
[354112709,1740251447889,-859.09,0.00015589,2]
[354112710,1740251447899,-1566.29,0.00015589,2]
[354112711,1740251447908,-735.03832709,0.00015589,2]
[354112712,1740251447917,-748.65,0.00015589,2]
[354112713,1740251447928,-3189.69,0.00015589,2]
[354112714,1740251447937,-9232.7957,0.00015589,2]
[354112715,1740251447946,-1167.61,0.00015589,2]
[354112716,1740251447955,-1261.4,0.00015589,2]
[354112717,1740251447965,-880.04,0.00015589,2]
[354112718,1740251447974,-557.2941539,0.00015671,2]
[354112719,1740251447982,-154.796407,0.00015671,2]
[354112720,1740251447992,-557.2941539,0.00015671,2]
[354112721,1740251448001,-154.796407,0.00015671,2]
[354112722,1740251448011,-557.2941539,0.00015671,2]
[354112723,1740251448020,-154.796407,0.00015671,2]
[354112724,1740251448029,-306.0,0.00015671,2]
[354112725,1740251448039,-154.796407,0.00015671,2]
[354112726,1740251448048,-695.3729426,0.00015671,2]
[354112727,1740251448058,-154.796407,0.00015671,2]
[354112728,1740251448069,-1114.5883078,0.00015671,2]
[354112729,1740251448078,-154.796407,0.00015671,2]
[354112730,1740251448088,-154.796407,0.00015671,2]
[354112731,1740251448098,-557.2941539,0.00015671,2]
[354112732,1740251448107,-308.2662799,0.00015671,2]
[354112733,1740251448117,-396.0,0.00015769,2]
[354112734,1740251448126,-250.715866,0.00015775,2]
[354112735,1740251448136,-151.0,0.000158,2]
[354112736,1740251448146,-151.0,0.00016,2]
[354112737,1740251448156,-150.0,0.00016013,2]
[354112738,1740251448165,-150.0,0.00016013,2]
[354112739,1740251448175,-538.0,0.00016013,2]
[354112740,1740251448184,-1970.0,0.00016013,2]
[354112741,1740251448194,-2287.0,0.00016013,2]
[354112742,1740251448204,-237.9009959,0.00016163,2]
[354112743,1740251448213,-499.0,0.00016164,2]
[354112744,1740251448223,-13278.19900895,0.00016211,2]
[354112745,1740251448232,-151.0,0.000163,2]
[354112746,1740251448242,-500.0,0.00016322,2]
[354112747,1740251448251,-3000.0,0.000164,2]
[354112748,1740251448261,-2000.0,0.000164,8]
[354112749,1740251448271,-1266.50320417,0.000164,2]
[354112750,1740251448280,-383.89258281,0.000164,2]
[354112751,1740251448290,-383.89258281,0.000164,2]
[354112752,1740251448300,-383.89258281,0.000164,2]
[354112753,1740251448311,-383.89258281,0.000164,2]
[354112754,1740251448321,-383.89258281,0.000164,2]
[354112755,1740251448331,-383.89258281,0.000164,2]
[354112756,1740251448340,-383.89258281,0.000164,2]
[354112757,1740251448350,-383.89258281,0.000164,2]
[354112758,1740251448359,-383.89258281,0.000164,2]
[354112759,1740251448369,-383.89258281,0.000164,2]
[354112760,1740251448379,-383.89258281,0.000164,2]
[354112761,1740251448389,-383.89258281,0.000164,2]
[354112762,1740251448398,-383.89258281,0.000164,2]
[354112763,1740251448408,-383.89258281,0.000164,2]
[354112764,1740251448417,-383.89258281,0.000164,2]
[354112765,1740251448426,-383.89258281,0.000164,2]
[354112766,1740251448436,-383.89258281,0.000164,2]
[354112767,1740251448446,-383.89258281,0.000164,2]
[354112768,1740251448456,-383.89258281,0.000164,2]
[354112769,1740251448465,-383.89,0.000164,2]
[354112770,1740251448475,-500.0,0.00016473,2]
[354112771,1740251448485,-500.0,0.00016473,2]
[354112772,1740251448495,-500.0,0.00016473,2]
[354112773,1740251448504,-500.0,0.00016473,2]
[354112774,1740251448513,-344.42508021,0.00016473,2]
[354112775,1740251448523,-500.0,0.00016473,2]
[354112776,1740251448532,-226871.251889,0.000165,8]
[354112777,1740251448692,-4557.28,0.00013698,2]
[354112778,1740251448703,-4485.76705888,0.0001378,2]
[354112793,1740251517134,242.059641,9.041e-05,2]
[354112871,1740252512672,1098.07016083,0.00018221,90]
[354112876,1740252539959,259.0841,9.041e-05,2]
[354112893,1740252632282,-300.0,0.00012585,2]
[354112894,1740252632292,-1051.63840695,0.00012586,2]
[354112895,1740252632303,-19822.15422845,0.00012586,2]
[354112896,1740252632313,-196.10239219,0.00012999,2]
[354112897,1740252632323,-171.95646358,0.00012999,2]
[354112898,1740252632332,-500.0,0.00012999,2]
[354112899,1740252632341,-500.0,0.00012999,2]
[354112900,1740252632350,-380.0,0.00012999,2]
[354112901,1740252632359,-563.41602582,0.00012999,2]
[354112902,1740252632369,-439.39357626,0.00012999,2]
[354112903,1740252632378,-179494.96517604,0.00013,3]
[354112904,1740252632387,-266.10356571,0.00013573,2]
[354112905,1740252632396,-500.0,0.00013673,2]
[354112906,1740252632405,-266.1035657,0.00013682,2]
[354112907,1740252632415,-500.0,0.00013697,2]
[354112908,1740252632424,-246.58495053,0.00013697,2]
[354112909,1740252632433,-426.16131336,0.00013698,2]
[354112910,1740252632443,-500.0,0.00013698,2]
[354112911,1740252632453,-500.0,0.00013698,2]
[354112912,1740252632462,-500.0,0.00013698,2]
[354112913,1740252632471,-500.0,0.00013698,2]
[354112914,1740252632480,-500.0,0.00013698,2]
[354112915,1740252632490,-500.0,0.00013698,2]
[354112916,1740252632499,-500.0,0.00013698,2]
[354112917,1740252632508,-500.0,0.00013698,2]
[354112918,1740252632517,-500.0,0.00013698,2]
[354112920,1740252632526,-500.0,0.00013698,2]
[354112921,1740252632644,-500.0,0.00013698,2]
[354112922,1740252632653,-500.0,0.00013698,2]
[354112923,1740252632663,-182.26280745,0.00013698,2]
[354112924,1740252632672,-500.0,0.00013698,2]
[354112925,1740252632681,-500.0,0.00013698,2]
[354112926,1740252632690,-500.0,0.00013698,2]
[354112927,1740252632699,-500.0,0.00013698,2]
[354112928,1740252632709,-500.0,0.00013698,2]
[354112929,1740252632718,-505.90644954,0.00013698,2]
[354112930,1740252632727,-542.464649,0.00013698,2]
[354112931,1740252632737,-500.0,0.00013698,2]
[354112932,1740252632746,-500.0,0.00013698,2]
[354112933,1740252632756,-491.97862551,0.00013698,2]
[354112934,1740252632765,-500.0,0.00013698,2]
[354112935,1740252632775,-500.0,0.00013698,2]
[354112936,1740252632784,-500.0,0.00013698,2]
[354112937,1740252632794,-500.0,0.00013698,2]
[354112938,1740252632802,-543.33557352,0.00013698,2]
[354112939,1740252632812,-500.0,0.00013698,2]
[354112940,1740252632821,-500.0,0.00013698,2]
[354112941,1740252632830,-500.0,0.00013698,2]
[354112942,1740252632839,-500.0,0.00013698,2]
[354112943,1740252632848,-500.0,0.00013698,2]
[354112944,1740252632858,-500.0,0.00013698,2]
[354112945,1740252632867,-500.0,0.00013698,2]
[354112946,1740252632876,-500.0,0.00013698,2]
[354112947,1740252632886,-500.0,0.00013698,2]
[354112948,1740252632895,-500.0,0.00013698,2]
[354112949,1740252632905,-500.0,0.00013698,2]
[354112950,1740252632914,-500.0,0.00013698,2]
[354112951,1740252632923,-500.0,0.00013698,2]
[354112952,1740252632933,-500.0,0.00013698,2]
[354112953,1740252632942,-500.62051789,0.00013698,2]
[354112954,1740252632951,-500.0,0.00013698,2]
[354112955,1740252632960,-500.0,0.00013698,2]
[354112956,1740252632970,-613.33913967,0.00013698,2]
[354112957,1740252632980,-500.0,0.00013698,2]
[354112958,1740252632989,-500.0,0.00013698,2]
[354112959,1740252632999,-500.0,0.00013698,2]
[354112960,1740252633008,-500.0,0.00013698,2]
[354112961,1740252633017,-500.0,0.00013698,2]
[354112962,1740252633027,-500.0,0.00013698,2]
[354112963,1740252633036,-500.0,0.00013698,2]
[354112964,1740252633046,-500.0,0.00013698,2]
[354112965,1740252633056,-500.0,0.00013698,2]
[354112966,1740252633066,-500.0,0.00013698,2]
[354112967,1740252633076,-500.0,0.00013698,2]
[354112968,1740252633085,-500.0,0.00013698,2]
[354112969,1740252633095,-500.0,0.00013698,2]
[354112970,1740252633105,-500.0,0.00013698,2]
[354112971,1740252633114,-500.0,0.00013698,2]
[354112972,1740252633124,-500.0,0.00013698,2]
[354112974,1740252633134,-500.0,0.00013698,2]
[354112975,1740252633144,-500.0,0.00013698,2]
[354112976,1740252633155,-500.0,0.00013698,2]
[354112977,1740252633165,-500.0,0.00013698,2]
[354112978,1740252633175,-645.74860392,0.00013698,2]
[354112979,1740252633184,-500.0,0.00013698,2]
[354112980,1740252633195,-500.0,0.00013698,2]
[354112981,1740252633205,-500.0,0.00013698,2]
[354112982,1740252633215,-500.0,0.00013698,2]
[354112983,1740252633225,-500.0,0.00013698,2]
[354112984,1740252633235,-500.0,0.00013698,2]
[354112985,1740252633244,-500.0,0.00013698,2]
[354112986,1740252633254,-500.0,0.00013698,2]
[354112987,1740252633263,-500.0,0.00013698,2]
[354112988,1740252633272,-500.0,0.00013698,2]
[354112989,1740252633282,-500.0,0.00013698,2]
[354112990,1740252633293,-500.0,0.00013698,2]
[354112991,1740252633303,-500.0,0.00013698,2]
[354112992,1740252633313,-500.0,0.00013698,2]
[354112993,1740252633324,-500.0,0.00013698,2]
[354112994,1740252633333,-500.0,0.00013698,2]
[354112995,1740252633343,-500.0,0.00013698,2]
[354112996,1740252633353,-500.0,0.00013698,2]
[354112997,1740252633362,-530.94527689,0.00013698,2]
[354112998,1740252633374,-500.0,0.00013698,2]
[354112999,1740252633383,-500.0,0.00013698,2]
[354113000,1740252633392,-560.63,0.00013698,2]
[354113001,1740252633401,-500.0,0.00013698,2]
[354113002,1740252633411,-500.0,0.00013698,2]
[354113003,1740252633420,-500.0,0.00013698,2]
[354113004,1740252633429,-500.0,0.00013698,2]
[354113005,1740252633439,-500.0,0.00013698,2]
[354113006,1740252633449,-500.0,0.00013698,2]